{"text_format":"3","workbook":"xlsx","n_sheets":1,"sheets":["Custodial locations"],"not_rendered":{"defined_names":1},"read":"whole","date_system":"1900"}

{"sheet":"Custodial locations","index":0,"n_rows":451,"n_cols":8,"rows_kept":451,"merged":[[1,3,1,4],[347,0,347,6]]}
[null,"PD 18-19.037 Custodial Services Various County Buildings Bid Sheet"]
["Bldg #","Building / Location","Gross Sq. Ft","Frequency / Days of Cleaning",null,null,"Monthly","Yearly"]
["Facilities Management"]
[]
[320,"4 H Center",{"v":9050,"d":"9,050"},5,"Mon-Fri",null,null,{"$f":"+G5*12","v":0}]
[null,"3730 Stefani Road"]
[null,"Pensacola, FL 32533"]
[]
[71,"Agricultural Extension Services",{"v":7000,"d":"7,000"},5,"Mon-Fri",null,null,{"$f":"+G9*12","v":0}]
[null,"3740 Stefani Rd."]
[null,"Pensacola, FL 32533"]
[]
[46,"Animal Shelter",{"v":9127,"d":"9,127"},5,"Mon-Fri",null,null,{"$f":"+G13*12","v":0}]
[null,"200 W. Fairfield Dr."]
[null,"Pensacola, FL 32501"]
[]
["179A","Archives Building ",{"v":10370,"d":"10,370"},5,"Mon-Fri",null,null,{"$f":"+G17*12","v":0}]
[null,"Archives Warehouse",{"v":5000,"d":"5,000"},1,"Mon ",null,null,{"$f":"+G18*12","v":0}]
[null,"120 E. Blount St.","Bid Sheet Total"]
[null,"Pensacola, FL 32501"]
[]
[223,"Barrineau Park CC",{"v":9888,"d":"9,888"},1,"Wed",null,null,{"$f":"+G22*12","v":0}]
[null,"6055 Barrineau Park School Rd.","Bid Sheet Total"]
[null,"Molino, FL 32577"]
[]
[73,"Beulah Community Center",{"v":3155,"d":"3,155"},2,"Tues & Fri",null,null,{"$f":"+G26*12","v":0}]
[null,"7425 Woodside Rd."]
[null,"Pensacola, FL 32526"]
[]
[4,"Big Lagoon Sheriff Station",{"v":1100,"d":"1,100"},1,"Wed",null,null,{"$f":"+G30*12","v":0}]
["**","12950 Gulf Beach Hwy"]
[null,"Pensacola, FL 32507"]
[]
[123,"Brownsville Community Center",{"v":32948,"d":"32,948"},6,"Mon-Sat",null,null,{"$f":"+G34*12","v":0}]
[null,"3200 W. Desoto Street","Bid Sheet Total"]
[null,"Pensacola, FL 32505"]
[]
[123,"Bryneville Community Center",{"v":3540,"d":"3,540"},1,"Wed",null,null,{"$f":"+G38*12","v":0}]
[null,"1701 Hwy 4A"]
[null,"Century, FL 32535"]
[]
[295,"Central Office Complex",{"v":74630,"d":"74,630"},5,"Mon-Fri",null,null,{"$f":"+G42*12","v":0}]
[null,"3363 W. Park Place"]
[null,"Pensacola, FL 32503"]
[]
[61,"Century Courthouse",{"v":5206,"d":"5,206"},2,"Tue & Thur",null,null,{"$f":"+G46*12","v":0}]
[null,"7500 N. Century Blvd"]
[null,"Century, FL 32535"]
[]
[65,"Century EMS",{"v":4115,"d":"4,115"},1,"Thur",null,null,{"$f":"+G50*12","v":0}]
[null,"6029 Industrial Blvd."]
[null,"Century, FL 32535"]
[]
[]
["Facilities Management"]
[]
[130,"Community Probation",{"v":13100,"d":"13,100"},5,"Mon-Fri",null,null,{"$f":"+G57*12","v":0}]
["**","Courtroom",{"v":1100,"d":"1,100"},1,"Monthly",null,null,{"$f":"+G58*12","v":0}]
[null,"2251 N. Palafox"]
[null,"Pensacola, FL 32501"]
[null,"* High Security Office (Restroom must be cleaned with employees present). Background Check"]
[]
[56,"Court Administration",865,5,"Mon-Fri",null,null,{"$f":"+G63*12","v":0}]
[null,"100 Maxwell Street"]
[null,"Pensacola, FL 32501"]
[]
[62,"Davisville Community Center",{"v":7124,"d":"7,124"},1,"Thurs",null,null,{"$f":"+G67*12","v":0}]
[null,"10200 Hwy 97"]
[null,"Bratt, FL 32535"]
[]
[63,"Dorrie Miller Community Center",{"v":1965,"d":"1,965"},2,"Mon-Fri",null,null,{"$f":"+G71*12","v":0}]
[null,"2819 N. Miller St"]
[null,"Pensacola, FL 32503"]
[]
[241,"Ebonwood Community Center",{"v":2964,"d":"2,964"},2,"Tue & Fri",null,null,{"$f":"+G75*12","v":0}]
[null,"3511 W. Scott St."]
[null,"Pensacola, FL 32505"]
[]
[66,"Employee Health Clinic",{"v":6158,"d":"6,158"},6,"Mon-Sat",null,null,{"$f":"+G79*12","v":0}]
[null,"Human Relations Commission",791,5,"Mon-Fri",null,null,{"$f":"+G80*12","v":0}]
[null,"2257 N. Baylen"]
[null,"Pensacola, FL 32501"]
[]
[256,"EMS @ Lions Eye Clinic",615,2,"Mon & Thur",null,null,{"$f":"+G84*12","v":0}]
[null,"1135 W Hayes St."]
[null,"Pensacola, FL 32501"]
[]
[6,"EMS @ Pleasant Grove Fire Station",122,1,"Sat or Sun",null,null,{"$f":"+G88*12","v":0}]
[null,"9350 Gulf Beach Hwy"]
[null,"Pensacola, FL 32507"]
[]
[231,"EMS @ Osceola Fire",200,2,"Wed & Sat",null,null,{"$f":"+G92*12","v":0}]
[null,"2601 Massachusetts "]
[null,"Pensacola, FL 32505"]
[]
[314,"Englewood Neighborhood Center",{"v":1180,"d":"1,180"},1,"Tues",null,null,{"$f":"+G96*12","v":0}]
[null,"2749 N H St"]
[null,"Pensacola, FL 32501"]
[]
[68,"Englewood Community Center",{"v":10824,"d":"10,824"},2,"Tue & Fri",null,null,{"$f":"+G100*12","v":0}]
[null,"2751 N H St"]
[null,"Pensacola, FL 32501"]
[]
[]
[]
[]
["Facilities Management"]
[]
[121,"Ensley Sheriff Sub-Station",{"v":3606,"d":"3,606"},2,"Tue & Fri",null,null,{"$f":"+G109*12","v":0}]
["**","97 Hood Dr."]
[null,"Pensacola, FL 32534"]
[]
[189,"Equestrian Center Admin",774,1,"Fri",null,null,{"$f":"+G113*12","v":0}]
[null,"7750 Mobile Hwy."]
[null,"Pensacola, FL 32526"]
[]
[242,"Ernie L. Magaha Bldg.",{"v":126700,"d":"126,700"},5,"Mon-Fri",null,null,{"$f":"+G117*12","v":0}]
[null,"221 Palafox Pl."]
[null,"Pensacola, FL 32502"]
[]
[258,"Government Complex Parking Garage",833,1,"Fri",null,null,{"$f":"+G121*12","v":0}]
[null,"49 W. Intendencia"]
[null,"Pensacola, FL 32501"]
[null,"* Includes 2 Stairwells, Elevator and Trash Receptacle on Each Level"]
[]
[45,"Escambia County Visitation",{"v":31249,"d":"31,249"},5,"Mon-Fri",null,null,{"$f":"+G126*12","v":0}]
["**","1190 W. Leonard St."]
[null,"Pensacola, FL 32501"]
[null,"*Sheriff Training Area:  Offices to be Cleaned during Business Hours.  Hallways after Hours."]
[]
[179,"Facilities Management",{"v":17058,"d":"17,058"},5,"Mon-Fri",null,null,{"$f":"+G131*12","v":0}]
[null,"Supervisor of Elections Warehouse",{"v":5630,"d":"5,630"},2,"Tues & Thur",null,null,{"$f":"+G132*12","v":0}]
[null,"100 E. Blount St."]
[null,"Pensacola, FL 32501"]
[]
[72,"Felix Miga Center",{"v":13670,"d":"13,670"},5,"Mon-Fri",null,null,{"$f":"+G136*12","v":0}]
[null,"904 N. 57th","Bid Sheet Total"]
[null,"Pensacola, FL 32506"]
[]
[203,"Government Complex - Administration",{"v":8319,"d":"8,319"},5,"Mon-Fri",null,null,{"$f":"+G140*12","v":0}]
[null,"1651 N. Nine Mile Rd.","Bid Sheet Total"]
[null,"Pensacola, FL 32514"]
[]
[80,"Juvenile Justice Center (JJC)",{"v":51083,"d":"51,083"},5,"Mon-Fri",null,null,{"$f":"+G144*12","v":0}]
["**","1800 St. Mary's Ave."]
[null,"Pensacola, FL 32502"]
[null,"Juvenile Justice Center"]
[null,"JJC: Clerk of the Courts & State Attorney areas must be cleaned before their employees leave for the day"]
[null,"Juvenile Justice Detention Center",{"v":30355,"d":"30,355"},5,"Mon-Fri",null,null,{"$f":"+G149*12","v":0}]
[null,"JJC Detention Center must be Cleaned after 9pm"]
[null,"Juvenile Justice Assessment Center",{"v":12036,"d":"12,036"},5,"Mon-Fri",null,null,{"$f":"+G151*12","v":0}]
[null,"JJC Assessment Center:  Employees must be escorted by Corrections Staff"]
[null,"* High Security Office"]
[null,"Note: Special Conditions "]
[]
[]
[]
[]
["Facilities Management"]
[]
[255,"Leonard Street Maintenance",{"v":1200,"d":"1,200"},1,"1 Day a Week",null,null,{"$f":"+G161*12","v":0}]
[null,"1135 W Hayes St. "]
[null,"Pensacola, FL 32501"]
[]
[267,"Lexington Terrace Community Center",{"v":2964,"d":"2,964"},2,"Wed & Fri",null,null,{"$f":"+G165*12","v":0}]
[null,"700 S. Old Corry Field Rd."]
[null,"Pensacola, FL 32523"]
[]
[181,"Marie Ella Davis Community Center",{"v":1965,"d":"1,965"},1,"Sat or Sun",null,null,{"$f":"+G169*12","v":0}]
[null,"16 Raymond St."]
[null,"Pensacola, FL 32507"]
[]
[301,"Marie K. Young Community Center",{"v":13200,"d":"13,200"},2,"Tues & Fri",null,null,{"$f":"+G173*12","v":0}]
[null,"6405 Wagner Road"]
[null,"Pensacola, FL 32501"]
[]
[49,"Matt Langley Bell",{"v":16200,"d":"16,200"},5,"Mon-Fri",null,null,{"$f":"+G177*12","v":0}]
[null,"213 S. Palafox"]
[null,"Pensacola, FL 32501"]
[]
[217,"Mayfair Community Center",{"v":1965,"d":"1,965"},2,"Wed & Sat",null,null,{"$f":"+G181*12","v":0}]
[null,"701 S. Madison Dr."]
[null,"Pensacola, FL 32505"]
[]
[124,"Molino Sheriff Sub-Station",{"v":2000,"d":"2,000"},2,"Wed & Sat",null,null,{"$f":"+G185*12","v":0}]
["**","5844 N. Hwy 29"]
[null,"Pensacola, FL 32577"]
[]
[302,"Molino Tax Collector & Property Appraiser",{"v":7133,"d":"7,133"},5,"Mon-Fri",null,null,{"$f":"+G189*12","v":0}]
[null,"6440 N Hwy 95A","Bid Sheet Total"]
[null,"Pensacola, FL 32577"]
[]
[125,"Molino Administration- Building Services",900,2,"Tues & Fri",null,null,{"$f":"+G193*12","v":0}]
[null,"3470 N. Hwy 29"]
[null,"Cantonment, FL 32533"]
[]
[292,"Molino Community Center",{"v":11280,"d":"11,280"},2,"Wed & Sat",null,null,{"$f":"+G197*12","v":0}]
[null,"6450 N Hwy 95A"]
[null,"Pensacola, FL 32577"]
[]
[292,"Molino Cafeteria Dining & Restrooms",{"v":1400,"d":"1,400"},2,"Mon & Thur",null,null,{"$f":"+G201*12","v":0}]
[null,"6450 N Hwy 95A"]
[null,"Pensacola, FL 32577"]
[]
[260,"Mosquito Control Administration",{"v":2978,"d":"2,978"},1,"Friday",null,null,{"$f":"+G205*12","v":0}]
[261,"Mosquito Garage Restroom",80,1,"Friday",null,null,{"$f":"+G206*12","v":0}]
[null,"601 Hwy 297A"]
[null,"Cantonment, FL 32533"]
[]
[]
["Facilities Management"]
[]
[260,"Mosquito Control Administration",{"v":2978,"d":"2,978"},1,"Friday",null,null,{"$f":"+G213*12","v":0}]
[261,"Mosquito Garage Restroom",80,1,"Friday",null,null,{"$f":"+G214*12","v":0}]
[null,"601 Hwy 297A"]
[null,"Cantonment, FL 32533"]
[]
[153,"Oak Grove Community Center",{"v":1636,"d":"1,636"},1,"Friday",null,null,{"$f":"+G218*12","v":0}]
[null,"2550 Hwy 99"]
[null,"Oak Grove, FL 32568"]
[]
[59,"Old Courthouse ",{"v":40680,"d":"40,680"},5,"Mon-Fri",null,null,{"$f":"+G222*12","v":0}]
[null,"223 S. Palafox St."]
[null,"Pensacola, FL 32501"]
[null,"Note : Artel Gallery- 1st floor (Tues-Friday)"]
[]
[178,"Supervisor of Election/Purchasing",{"v":22900,"d":"22,900"},5,"Mon-Fri",null,null,{"$f":"+G227*12","v":0}]
[null,"Old Ordon/Orvis Bldg"]
[null,"201 S. Palafox St."]
[null,"Pensacola, FL 32502"]
[]
[139,"Pensacola Beach Sheriff Substation",{"v":2845,"d":"2,845"},3,"Mon, Wed & Fri",null,null,{"$f":"+G232*12","v":0}]
["**","43 Ft. Pickens Rd."]
[null,"Pensacola, FL 32561"]
[]
[305,"Perdido Key Community Center & Welcome Station",{"v":5155,"d":"5,155"},1,"Sat or Sun",null,null,{"$f":"+G236*12","v":0}]
[null,"15500 Perdido Key Dr."]
[null,"Pensacola, FL 32507"]
[]
[224,"Public Safety",{"v":60310,"d":"60,310"},5,"Mon-Fri",null,null,{"$f":"+G240*12","v":0}]
[null,"6575 N. W St."]
[null,"Pensacola, FL 32505"]
[]
[185,"Quintette Community Center",{"v":1965,"d":"1,965"},1,"Fri",null,null,{"$f":"+G244*12","v":0}]
[null,"2490 Quintette Lane"]
[null,"Cantonment, FL 32533"]
[]
[113,"Sheriff Administration",{"v":108927,"d":"108,927"},5,"Mon-Fri",null,null,{"$f":"+G248*12","v":0}]
["**","1700 W. Leonard St."]
[null,"Pensacola, FL 32501"]
[null,"Must be cleaned during normal business hours"]
[]
[113,"Sheriff Maintenance Garage",{"v":15680,"d":"15,680"},5,"Mon-Fri",null,null,{"$f":"+G253*12","v":0}]
["**","3101 H. Street"]
[null,"Pensacola, FL 32501"]
[null,"Must be cleaned during normal business hours"]
[]
[]
[]
[]
[]
["Facilities Management"]
[]
[113,"Sheriff Investigations",600,5,"Mon-Fri",null,null,{"$f":"+G264*12","v":0}]
["**","1600 W. Leonard Street"]
[null,"Pensacola, FL 32501"]
[null,"Must be cleaned during normal business hours"]
[]
[157,"Walnut Hill Community Center",{"v":4823,"d":"4,823"},1,"Wed",null,null,{"$f":"+G269*12","v":0}]
[null,"7850 Hwy 97"]
[null,"Walnut Hill, FL 32568"]
[]
[182,"Walnut Hill Sheriff Sub-Station",{"v":1050,"d":"1,050"},2,"Tues & Thur",null,null,{"$f":"+G273*12","v":0}]
["**","7850 Hwy 97"]
[null,"Walnut Hill, FL 32568"]
[]
[303,"Warrington Sheriff Substation",{"v":6000,"d":"6,000"},2,"Tue / Thur",null,null,{"$f":"+G277*12","v":0}]
["**","30 N. Navy Blvd"]
[null,"Pensacola, FL 32507"]
[]
[325,"Warrington Tax Collector",{"v":9515,"d":"9,515"},5,"Mon-Fri",null,null,{"$f":"+G281*12","v":0}]
[null,"4051 Barrancas Avenue Suite A"]
[null,"Pensacola, FL 32507"]
[]
[173,"Wind Mitigation Bldg.",{"v":3139,"d":"3,139"},5,"Mon-Fri",null,null,{"$f":"+G285*12","v":0}]
[null,"3740 Stefani Rd."]
[null,"Pensacola, FL 32501"]
[]
[]
[null,"Facilities Management Total",{"$f":"SUM(C4:C289)","v":{"v":874998,"d":"874,998"}},{"$nulls":4},{"$f":"SUM(H5:H285)","v":0}]
[null,null,"Bid Sheet Total"]
[]
[]
["**","Require Background Check & Cleaned During Normal Business Hours"]
{"$rows_empty":19}
["LIBRARIES"]
[]
[264,"Century Library",{"v":2966,"d":"2,966"},5,"Tue - Sat",null,null,{"$f":"+G316*12","v":0}]
[null,"7991 Century Blvd."]
[null,"Century, FL  32535"]
[]
[310,"Genealogy Library",{"v":7126,"d":"7,126"},5,"Tue - Sat",null,null,{"$f":"+G320*12","v":0}]
[null,"5740 N 9th Ave"]
[null,"Pensacola, FL  32504"]
[]
[318,"Legion Field Library",{"v":3545,"d":"3,545"},6,"Mon - Sat",null,null,{"$f":"+G324*12","v":0}]
[null,"1301 W. Gregory St."]
[null,"Pensacola, FL  32533"]
[]
[292,"Molino Library",{"v":4320,"d":"4,320"},6,"Mon - Sat",null,null,{"$f":"+G328*12","v":0}]
[null,"6450 N Hwy 95A"]
[null,"Pensacola, FL 32577"]
[]
[232,"SW Library",{"v":7295,"d":"7,295"},6,"Mon - Sat",null,null,{"$f":"+G332*12","v":0}]
[null,"12248 Gulf Beach Hwy."]
[null,"Pensacola, FL 32507"]
[]
[308,"Tryon Library",{"v":12045,"d":"12,045"},6,"Mon - Sat",null,null,{"$f":"+G336*12","v":0}]
[null,"1200 Langley Ave."]
[null,"Pensacola, FL 32504"]
[]
[307,"W Florida Regional Library",{"v":50957,"d":"50,957"},7,"Mon - Sun",null,null,{"$f":"+G340*12","v":0}]
[null,"239 N. Spring St."]
[null,"Pensacola, FL 32502"]
[]
[null,"Library Total",{"$f":"SUM(C315:C343)","v":{"v":88254,"d":"88,254"}},null,"Total",null,null,{"$f":"SUM(H316:H343)","v":0}]
[null,null,"Bid Sheet Total"]
[]
[]
["Emergency Service Call Cost - 2hr. Response Time Based on 1 hour on site."]
[]
[null,"Century Library",{"$nulls":5},"$"]
[null,"Genealogy Library",{"$nulls":5},"$"]
[null,"Legion Field",{"$nulls":5},"$"]
[null,"Molino Library",{"$nulls":5},"$"]
[null,"SW Library",{"$nulls":5},"$"]
[null,"Tryon Library",{"$nulls":5},"$"]
[null,"W. Florida Regional Library",{"$nulls":5},"$"]
[]
[null,"Additional hourly rate",{"$nulls":5},"$"]
[]
[]
[]
[]
[]
["Santa Rosa Island Authority"]
[]
[null,"SRIA Administration Building",{"v":6600,"d":"6,600"},5,"Mon-Fri",null,null,{"$f":"+G366*12","v":0}]
[null,"1 Via De Luna Drive"]
[null,"Pensacola beach, FL 32561"]
[]
[null,"Visitors Information Center",{"v":2500,"d":"2,500"},7,"Mon - Sun",null,null,{"$f":"+G370*12","v":0}]
[null,"7 Casino Road"]
[null,"Pensacola Beach, FL 32561",{"v":9100,"d":"9,100"},null,"Total",null,null,{"$f":"SUM(H330:H371)","v":0}]
[null,null,"Bid Sheet Total"]
[]
["Solid Waste"]
[]
[null,"Solid Waste"]
[null,"13009 Beulah Road"]
[null,"Pensacola, FL 32526"]
[273,"Solid Waste - Administration",{"v":8046,"d":"8,046"},5,"Mon-Fri",null,null,{"$f":"+G380*12","v":0}]
[null,"Clean Microwave each day"]
[null,"Buff floors once a week"]
[27,"Solid Waste -- Operations Garage",{"v":4206,"d":"4,206"},6,"Mon-Sat",null,null,{"$f":"+G383*12","v":0}]
[null,"Clean Microwave each day"]
[null,"Buff floors once a week"]
[251,"Solid Waste - Hazardous House Waste",280,5,"Mon-Fri",null,null,{"$f":"+G386*12","v":0}]
[30281,"Solid Waste - Guard Trailer",685,1,"1 Day a Week",null,null,{"$f":"+G387*12","v":0}]
[28,"Solid Waste - Scale House",357,6,"Mon-Sat",null,null,{"$f":"+G388*12","v":0}]
[null,"Clean Microwave each day"]
[316,"Solid Waste - Scale House",315,1,"1 Day a Week",null,null,{"$f":"+G390*12","v":0}]
[null,"2906 N. Palafox Street"]
[null,"Pensacola, FL 32501"]
[]
[null,"Solid Waste Total",{"$f":"SUM(C380:C392)","v":{"v":13889,"d":"13,889"}},null,"Total",null,null,{"$f":"SUM(H380:H391)","v":0}]
[null,null,"Bid Sheet Total"]
[]
[]
["Road Department"]
[]
[null,"Road Department"]
[null,"601 Hwy 297A"]
[null,"Pensacola, FL 32533"]
[37,"Road Department - Administration",{"v":2730,"d":"2,730"},5,"Mon-Fri",null,null,{"$f":"+G403*12","v":0}]
[39,"Road Department - Wellness Center",{"v":1668,"d":"1,668"},5,"Mon-Fri",null,null,0]
[270,"Road Department - Modular Trailer",760,5,"Mon-Fri",null,null,0]
["41A","Road Department - Modular Trailer",760,5,"Mon-Fri",null,null,0]
[36,"Road Department - Fleet Maintenance",{"v":2300,"d":"2,300"},5,"Mon-Fri",null,null,0]
[187,"Road Department - Fuel Operations Trailer",720,5,"Mon-Fri",null,null,0]
[]
[null,null,{"$f":"SUM(C403:C408)","v":{"v":8938,"d":"8,938"}},null,"Total",null,null,{"$f":"SUM(H403:H408)","v":0}]
[null,"Road Department Total","Bid Sheet Total"]
[]
[]
[]
["Tax Collector"]
[]
[219,"Marcus Point Tax Collector",{"v":10038,"d":"10,038"},5,"Mon-Fri",null,null,{"$f":"+G417*12","v":0}]
[null,"6451 \"W\" Street"]
[null,"Pensacola, FL 32505"]
[null,"Public Restrooms are to be cleaned twice a day"]
[]
[null,"Tax Collector's Total",{"v":10038,"d":"10,038"},null,"Total",null,null,{"$f":"+H417","v":0}]
[null,null,"Bid Sheet Total"]
[]
["ECAT"]
[]
[null,"ECAT"]
[null,"1515 W Fairfield Drive"]
[null,"Pensacola, FL 32501"]
[null,"Office Areas",null,5,"Mon - Fri"]
[null,"Restrooms",null,6,"Mon - Sat"]
[null,"*Passenger Restrooms Start at 2PM Daily"]
[null,"Kitchen / Breakroom Area",null,6,"Mon - Sat"]
[null,"ECAT Total",{"v":12750,"d":"12,750"},null,"Total",null,null,{"$f":"+G434*12","v":0}]
[null,null,"Bid Sheet Total"]
[]
[]
[]
[]
["Additional Area Cleaning Cost:",{"$nulls":5},"Per sq. ft."]
[]
[]
[null,"VCT:  Strip / Wax (4 coats)",{"$nulls":4},"$"]
[]
[null,"Ceramic:  Scrub",{"$nulls":4},"$"]
[]
[null,"Carpet:  Shampoo",{"$nulls":4},"$"]
[]
[null,"Window Cleaning Exterior (Outside of Scope)",{"$nulls":4},"$"]
[]
[null,"Window Cleaning Interior (Outside of Scope)",{"$nulls":4},"$"]